[Event "8th Montevideo Open 2025"]
[Site "Montevideo"]
[Date "2025.02.01"]
[Round "2.8"]
[White "Coppola, Claudio"]
[Black "Guillen Ramirez, Jose Antonio"]
[Result "1-0"]
[Annotator "TA"]
[ECO "E18"]
[WhiteElo "2220"]
[BlackElo "2114"]
[PlyCount "35"]
[EventDate "2025.02.01"]
[EventType "swiss"]
[EventCountry "URU"]
[SourceTitle "playchess.com"]
[Source "ChessBase"]
[SourceQuality "1"]
[TimeControl "5400+30"]

{[%evp 17,35,14,17,-15,-11,-5,105,100,118,131,111,112,157,150,235,231,319,278,383,364]} 1. d4 {[%emt 0:03:06]} Nf6 {[%emt 0:00:29]} 2. c4 {[%emt 0:00:23]} e6 {[%emt 0:08:48]} 3. g3 {[%emt 0:00:09]} Be7 {[%emt 0:00:47]} 4. Bg2 {[%emt 0:00:04]} d5 {[%emt 0:00:07]} 5. Nf3 {[%emt 0:00:06]} O-O {[%emt 0:00:29]} 6. O-O {[%emt 0:00:03]} b6 {[%emt 0:00:55]} 7. cxd5 {[%emt 0:00:15]} exd5 {[%emt 0:00:02]} 8. Nc3 {[%emt 0:00:12]} Bb7 {[%emt 0:02:26]} 9. Bf4 {[%emt 0:00:18]} Nh5 {[%emt 0:13:15]} 10. Qc2 $146 {[%emt 0:07:05] E18: Queen's Indian: Old Main Line (4 g3 Bb7 5 Bg2 Be7 6 0-0 0-0 7 Nc3).} (10. Bd2 Nf6 11. Rc1 Nbd7 12. Qc2 c5 13. Rfd1 a6 14. dxc5 bxc5 15. Nh4 Re8 16. Nf5 Qc8 17. Qb3 c4 18. Nxe7+ Rxe7 19. Qa3 {1-0 Lenderman,A (2634)-Livaic,L (2507) PNWCC Online blitz JP 9th 2020 (11)}) 10... Nxf4 {[%emt 0:07:17]} 11. gxf4 {[%emt 0:00:03]} c5 {[%emt 0:13:55]} (11... c6 $11) 12. dxc5 $16 {[%emt 0:03:13] White is better. White is more active.} Na6 {[%emt 0:21:49]} 13. cxb6 $40 {[%emt 0:08:16][%mdl 128] Black is in trouble.} Qxb6 {[%emt 0:00:25]} 14. Rfd1 {[%emt 0:02:20]} Qh6 {[%emt 0:04:54]} 15. e3 {[%emt 0:00:59]} (15. Nxd5 $2 {is the wrong capture.} Bxd5 16. Rxd5 Nb4 $19 (16... Qxf4 17. Qf5 $16)) 15... Qh5 {[%emt 0:01:25] [#]} (15... Bf6 $16 16. Qf5 (16. Nxd5 Bxd5 17. Rxd5 Nb4 $17) 16... Nc7) 16. Nxd5 $1 $18 {[%emt 0:04:19][%mdl 512]} Bxd5 {[%emt 0:00:43] [#]} (16... Kh8 17. Qe4) 17. Rxd5 {[%emt 0:00:27][%mdl 512]} Qxd5 {[%emt 0:00:13] [#]} (17... Nb4 18. Rxh5) 18. Ng5 $1 {[%emt 0:00:07][%mdl 512] White took control after the opening.   Weighted Error Value: White=0.04 (flawless) /Black=0.69  Mistake:       	---       	Black=2      Inaccurate:     	---       	Black=3      OK:         	White=5     	Black=1      Brilliant:      	White=2     	---} 1-0

[Event "8th Montevideo Open 2025"]
[Site "Montevideo"]
[Date "2025.02.01"]
[Round "2.9"]
[White "Durante, Aurelio"]
[Black "Carbone, Diego"]
[Result "0-1"]
[Annotator "TA"]
[ECO "C45"]
[WhiteElo "1950"]
[BlackElo "2216"]
[PlyCount "126"]
[EventDate "2025.02.01"]
[EventType "swiss"]
[EventCountry "URU"]
[SourceTitle "playchess.com"]
[Source "ChessBase"]
[SourceQuality "1"]
[TimeControl "5400+30"]

{[%evp 13,126,-10,0,-78,-24,-32,-42,-29,-48,-62,-47,-95,-93,-81,-80,-90,0,0,0,0,0,0,0,-42,-46,-31,-24,-33,-29,-26,0,-16,0,-36,-27,-44,19,-42,-8,-27,-27,-27,-27,-28,-27,-27,-27,-33,-28,-73,-76,-88,-74,-121,-90,-83,-72,-63,-8,-328,-8,-9,-13,-81,-36,-113,-112,-168,-150,-145,0,0,0,-83,-87,-165,-63,-166,-162,-187,-158,-165,-90,-152,-126,-137,-129,-154,-126,-269,-269,-269,-265,-262,-230,-218,-125,-127,-127,-126,-129,-961,-580,-1125,-1131,-1103,-1098,-756,-799,-1399,-1986,-2301,-2252,-4867,-4867]} 1. e4 {[%emt 0:00:04]} e5 {[%emt 0:00:53]} 2. Nf3 {[%emt 0:00:08]} Nc6 {[%emt 0:00:26]} 3. d4 {[%emt 0:00:29]} exd4 {[%emt 0:00:30]} 4. Nxd4 {[%emt 0:00:15]} Nf6 {[%emt 0:00:15]} 5. Nxc6 {[%emt 0:03:23]} bxc6 {[%emt 0:00:12]} 6. e5 {[%emt 0:01:02]} Qe7 {[%emt 0:00:06]} 7. Qe2 {[%emt 0:00:28]} Nd5 {[%emt 0:00:04]} 8. a3 {[%emt 0:00:51] 8.h4 is a critical line. C45: Scotch Game.} (8. c4 $11 Ba6 9. g3) 8... a5 {[%emt 0:05:14]} (8... g6 $1 $17) 9. c4 $11 {[%emt 0:06:29]} Ba6 {[%emt 0:00:31]} 10. Qe4 {[%emt 0:01:15] Black is slightly better.} Nb6 {[%emt 0:02:08]} 11. Nc3 {[%emt 0:02:35]} Qe6 {[%emt 0:01:38]} 12. b3 {[%emt 0:05:54] [#]} (12. Be2 $15 {might be stronger.}) 12... a4 $1 $17 {[%emt 0:01:00]} 13. Nxa4 {[%emt 0:00:35]} (13. b4 Bxc4) 13... Nxa4 {[%emt 0:02:35]} 14. bxa4 {[%emt 0:00:03]} Bc5 {[%emt 0:07:02] Black sacrificed a pawn} (14... d5 $17 15. Qe3 Be7 (15... dxc4 16. Be2 $11) (15... Bxc4 16. Bxc4 dxc4 17. O-O $15)) 15. Bd3 $11 {[%emt 0:01:24]} d5 {[%emt 0:07:45]} 16. exd6 {[%emt 0:01:29]} cxd6 {[%emt 0:01:09][%cal Oa6c4]} 17. Be3 $146 {[%emt 0:08:13]} (17. O-O Qxe4 18. Bxe4 d5 19. Bd3 O-O 20. Re1 Bd4 21. Rb1 Bxc4 22. Bxc4 dxc4 23. Re4 {0-1 Munoz,R (2040)-Obiamiwe,P (1903) Gibraltar Masters 17th 2019 (8)}) 17... Bxe3 {[%emt 0:02:34]} 18. fxe3 {[%emt 0:05:10]} Qxe4 {[%emt 0:01:04]} 19. Bxe4 {[%emt 0:00:04]} Kd7 {[%emt 0:00:57]} 20. Bd3 {[%emt 0:03:26]} Rhe8 {[%emt 0:17:32][%mdl 1024] Black has compensation.} 21. Kd2 {[%emt 0:01:47]} Re5 {[%emt 0:01:38]} 22. Rhf1 {[%emt 0:01:22]} f6 {[%emt 0:01:43]} 23. Rab1 {[%emt 0:07:56][%cal Of1f4]} Kc7 {[%emt 0:01:18]} 24. Rf4 {[%emt 0:02:50]} Rae8 {[%emt 0:03:22]} (24... Bc8 $15) 25. Re1 {[%emt 0:02:48]} (25. Bxh7 Rxe3 26. Bd3 d5 $15) (25. Rg4 $11 R8e7 26. Bxh7) 25... Ra5 {[%emt 0:09:55]} 26. Bc2 {[%emt 0:03:18]} Bc8 {[%emt 0:02:42]} 27. g4 {[%emt 0:02:04]} Bd7 {[%emt 0:01:12]} 28. h4 {[%emt 0:09:58]} h6 {[%emt 0:00:09]} 29. Rb1 {[%emt 0:00:42]} Ree5 {[%emt 0:02:20]} 30. e4 {[%emt 0:07:06]} c5 {[%emt 0:04:53]} 31. Kc3 {[%emt 0:15:52]} Bxa4 {[%emt 0:00:34]} 32. Bd3 {[%emt 0:00:37]} Bc6 {[%emt 0:02:31]} 33. Kb3 {[%emt 0:00:42]} (33. Ra1 $142) 33... Ra8 {[%emt 0:03:20]} 34. Rg1 {[%emt 0:00:31][%cal Og4g5]} Rae8 {[%emt 0:02:26][%cal Rc6e4] Black is more active.} 35. g5 {[%emt 0:01:52]} Bxe4 {[%emt 0:01:33]} (35... fxg5 $15 36. hxg5 Bxe4 (36... Rxg5 37. Rf7+ Kb6 38. Rxg5 $11) 37. Bxe4 Rxe4 38. Rxe4 Rxe4) 36. gxf6 $2 {[%emt 0:02:41][%mdl 8192]} (36. Rxe4 $11 Rxe4 37. Bxe4 Rxe4 38. gxh6 gxh6 (38... Rxh4 $2 39. hxg7 f5 40. g8=Q $18) 39. h5) 36... gxf6 $2 {[%emt 0:01:35]} (36... Bxd3 $19 37. Rxg7+ Kd8) 37. Bxe4 {[%emt 0:02:07]} Rxe4 {[%emt 0:00:01]} 38. Rxf6 {[%emt 0:00:14]} (38. Rg7+ $11 {remains equal.} Kc6 39. Rxe4 Rxe4 40. Rg6) 38... Rxh4 $15 {[%emt 0:01:51][%mdl 4096] Endgame KRR-KRR. Black is a pawn up.} 39. Rg7+ {[%emt 0:00:18]} (39. Rg3 $1 $15) 39... Kc6 $17 {[%emt 0:00:36]} 40. Rf3 {[%emt 0:01:30] Repels Re3+} (40. Rg3 $17) 40... h5 {[%emt 0:03:48]} 41. Ra7 {[%emt 0:00:48]} Ree4 {[%emt 0:00:51]} (41... Rd4 $17 {Hoping for ...h4.} 42. Rff7 Re3+ 43. Kb2 Rxc4 44. Ra6+ Kb5 (44... Kd5 45. Rf6 $17) 45. Rxd6 Rcc3 46. a4+ Kxa4 47. Ra7+ Kb5) 42. Ra6+ $11 {[%emt 0:00:35]} Kd7 {[%emt 0:00:22]} 43. Rd3 {[%emt 0:00:13]} (43. Rf6 $1 $11) 43... Rd4 $1 $17 {[%emt 0:00:32]} (43... Rxc4 $6 44. Rdxd6+ Kc8 45. Ra8+ Kb7 46. Rad8 $11) 44. Rg3 {[%emt 0:00:41]} (44. Rxd4 $17 Rxd4 45. a4) 44... Rhg4 {[%emt 0:01:28]} (44... Rxc4 45. Rg7+ Ke6 46. Rg6+ Kf5 47. Raxd6 $17) (44... Ke6 $19 {[%cal Oh4g4]} 45. Rc3 (45. Rg6+ $2 Ke5 $19) 45... Ke5) 45. Rc3 {[%emt 0:00:27]} (45. Rxg4 $1 $15 hxg4 46. Ra7+ Ke6 47. a4) 45... h4 $19 {[%emt 0:01:31]} 46. Ra7+ {[%emt 0:00:02]} Ke6 {[%emt 0:00:12]} 47. a4 {[%emt 0:00:12]} Rg1 {[%emt 0:01:37]} ({Better is} 47... Rd1 $19 48. Rh7 Rb1+ 49. Ka2 Rb4) 48. Re3+ {[%emt 0:00:30]} ({White should try} 48. a5) 48... Kf5 {[%emt 0:02:16]} 49. a5 {[%emt 0:01:19]} Rb1+ {[%emt 0:00:46]} 50. Ka2 {[%emt 0:00:12]} Rb4 {[%emt 0:00:30]} 51. Ra3 {[%emt 0:00:39]} (51. a6 $17 {was worth a try.}) 51... Rd2+ {[%emt 0:01:22]} ({Don't take} 51... Rdxc4 52. a6 $17) 52. Ka1 {[%emt 0:00:03]} Rxc4 {[%emt 0:00:08][%cal Rc4c1]} 53. Rf7+ {[%emt 0:00:12]} Ke6 {[%emt 0:01:02]} 54. Rf1 {[%emt 0:00:09] [#] And now a6 would win. Prevents Rc1+} Rg4 {[%emt 0:02:35]} (54... Rdd4 55. a6 Ra4 56. Rff3 Rd1+ 57. Kb2 Rd2+ 58. Kb3 Rxa3+ 59. Kxa3 $16) (54... Rg2 $1 $19 55. a6 Rg8) 55. a6 $17 {[%emt 0:00:17] [#]} Rg8 $1 {[%emt 0:00:01]} ({Not} 55... Rg3 $2 56. Rxg3 Rd4 57. Ra3 $18) 56. a7 {[%emt 0:00:13]} Ra8 {[%emt 0:00:10][%cal Oh4h3]} 57. Rb1 $2 {[%emt 0:01:31][%mdl 8192] [#]} (57. Rh1 $17) 57... h3 $1 $19 {[%emt 0:00:14] Black is clearly winning.} 58. Re1+ {[%emt 0:01:01]} Kd5 {[%emt 0:00:54]} 59. Rxh3 {[%emt 0:00:47]} Rxa7+ {[%emt 0:00:04]} 60. Kb1 {[%emt 0:00:08]} c4 {[%emt 0:00:57]} 61. Kc1 {[%emt 0:00:47]} Rda2 {[%emt 0:00:57] ( -> ...Ra1+)} 62. Rd1+ {[%emt 0:00:32]} Kc6 {[%emt 0:01:21]} 63. Rh6 {[%emt 0:00:02]} Ra1+ {[%emt 0:00:09] Weighted Error Value: White=0.52/Black=0.28 (precise)   Loses game:     	White=2     	---        Missed win:     	---       	Black=1      Mistake:       	White=11    	Black=8      Inaccurate:     	White=3     	Black=3      OK:         	White=16    	Black=19     Best:        	White=5     	Black=2      Strong:       	---       	Black=2      Brilliant:      	---       	Black=1} 0-1

[Event "8th Montevideo Open 2025"]
[Site "Montevideo"]
[Date "2025.02.01"]
[Round "2.11"]
[White "Kulik, Nicolas"]
[Black "Dominguez, Facundo"]
[Result "0-1"]
[Annotator "TA"]
[ECO "C11"]
[WhiteElo "1922"]
[BlackElo "2159"]
[PlyCount "94"]
[EventDate "2025.02.01"]
[EventType "swiss"]
[EventCountry "URU"]
[SourceTitle "playchess.com"]
[Source "ChessBase"]
[SourceQuality "1"]
[TimeControl "5400+30"]

{[%evp 13,93,0,25,26,26,25,19,14,21,-8,21,31,65,-15,-11,-11,-25,-15,0,-73,-58,-115,-115,-124,-115,-118,-62,-174,-72,-128,-48,-65,-27,-36,0,-77,-118,-93,-64,-203,-114,-166,-158,-231,-222,-225,-225,-253,-225,-260,-143,-158,-110,-256,-109,-101,25,-7,-7,-6,-8,-11,0,0,0,0,0,-10,0,-437,-436,-725,-716,-716,-685,-29971,-849,-29985,-29986,-29998,-29999,-29999]} 1. e4 {[%emt 0:00:01]} e6 {[%emt 0:01:05]} 2. d4 {[%emt 0:00:02]} d5 {[%emt 0:00:08]} 3. Nc3 {[%emt 0:00:02]} Nf6 {[%emt 0:00:14]} 4. e5 {[%emt 0:00:01]} Nfd7 {[%emt 0:00:08]} 5. f4 {[%emt 0:00:02]} c5 {[%emt 0:00:10]} 6. Nf3 {[%emt 0:00:01]} Nc6 {[%emt 0:00:24]} 7. Be3 {[%emt 0:00:02]} a6 {[%emt 0:01:09]} 8. Ne2 {[%emt 0:00:09] C11: French: Classical System: 4 e5 and 4 Bg5 dxe4.} Be7 {[%emt 0:07:43]} 9. c3 {[%emt 0:00:10]} O-O {[%emt 0:03:49]} 10. h4 {[%emt 0:04:39] The position is equal.} f6 {[%emt 0:06:27]} 11. h5 {[%emt 0:07:45]} cxd4 $146 {[%emt 0:05:13]} (11... fxe5 {seems wilder.} 12. fxe5 Rf7 13. Qc2 Qa5) (11... fxe5 12. fxe5 b5 13. Nf4 Nb6 14. b3 c4 15. Qc2 Qe8 16. Rh3 Bd7 17. g4 Rc8 {1-0 Maerevoet,S (2437)-Baselmans,L (2306) BEL-chT 2324 2023 (11.3)}) 12. Nexd4 {[%emt 0:03:46]} Nxd4 {[%emt 0:04:41]} 13. Bxd4 {[%emt 0:03:00]} ({Better is} 13. cxd4 $14 Qa5+ 14. Kf2) 13... fxe5 $11 {[%emt 0:01:17]} 14. fxe5 {[%emt 0:00:30]} Nc5 {[%emt 0:04:19]} 15. Qc2 {[%emt 0:10:22]} b5 {[%emt 0:03:26][%cal Ob5b4]} 16. a4 {[%emt 0:30:36]} (16. O-O-O $11 {remains equal.}) 16... Bd7 {[%emt 0:03:55][%cal Rb5a4]} (16... Nxa4 $6 17. h6 g6 18. Bd3 $16) 17. Bxc5 {[%emt 0:12:26]} (17. axb5 $15 axb5 18. Rxa8 Qxa8 19. Qb1) 17... Bxc5 $17 {[%emt 0:00:08]} 18. h6 {[%emt 0:00:25]} g6 {[%emt 0:11:36]} (18... bxa4 $2 19. hxg7 Rf5 20. g4 $18) 19. Bd3 {[%emt 0:00:15]} Be8 {[%emt 0:24:40]} (19... Qe7 $17 20. axb5 Bxb5) 20. b4 {[%emt 0:08:44]} (20. axb5 $15 axb5 21. Rxa8 Qxa8 22. Ke2) 20... Bb6 {[%emt 0:01:32]} (20... Be3 $19 21. Qe2 d4) 21. a5 {[%emt 0:00:24]} (21. axb5 $142 axb5 (21... Bxb5 22. Bxg6 Qc7 23. Bd3 $11) 22. Rxa8 Qxa8 23. Ke2) 21... Ba7 {[%emt 0:00:08]} (21... Be3 $17 22. Qe2 Bf4) 22. Qd2 $15 {[%emt 0:01:21]} Rc8 {[%emt 0:02:10]} 23. Rc1 {[%emt 0:09:24]} Qc7 {[%emt 0:09:41][%cal Of8f3]} 24. Rh4 {[%emt 0:01:30] [#]} (24. Qg5 $11) 24... Rxf3 $1 $17 {[%emt 0:06:18]} 25. gxf3 {[%emt 0:00:01] and Qg5 would now be decisive} Qxe5+ {[%emt 0:00:08]} 26. Qe2 {[%emt 0:01:00] [#]} (26. Kd1 $1 $15) 26... Be3 {[%emt 0:01:34]} (26... Qf6 $1 $19 {[%cal Rf6h4]} 27. Kd2 Bd7 (27... Qxh4 28. Qxe6+ Kf8 29. Qxc8 $11)) 27. f4 {[%emt 0:02:14]} Rxc3 $19 {[%emt 0:00:26]} (27... Bxf4 28. Rxf4 Qxf4 29. Qxe6+ Kf8 30. Rc2) 28. Rd1 {[%emt 0:03:50]} (28. fxe5 $17 Rxc1+ 29. Qd1 Bf2+ (29... Rxd1+ 30. Kxd1 Kf7 31. Kc2 $11) 30. Kxf2 Rxd1 31. Rh3) 28... Bxf4 {[%emt 0:00:27]} (28... Qd4 29. Kf1 $17) 29. Qxe5 {[%emt 0:00:30]} Bxe5 {[%emt 0:00:02] This pair of bishops is nice.} 30. Kd2 {[%emt 0:00:27]} Rc7 {[%emt 0:01:11]} 31. Rf1 {[%emt 0:00:58]} Bc3+ {[%emt 0:00:43]} ({Black should play} 31... Bd6 $19 32. Be2 e5) 32. Kd1 $17 {[%emt 0:00:28]} e5 {[%emt 0:00:34]} (32... Bf7 $142 33. Rhf4 Kf8 34. Bxb5 e5 (34... axb5 35. a6 $16) 35. Rxf7+ Rxf7 36. Rxf7+ Kxf7 37. Bxa6 Bxb4) 33. Be2 {[%emt 0:01:03]} (33. Rf2 $17) 33... e4 {[%emt 0:00:56]} (33... Bd7 $19 {and Black stays clearly on top.} 34. Bd3 e4) 34. Rhf4 {[%emt 0:00:31] [#]} Bxb4 {[%emt 0:00:23]} (34... Bf7 $2 35. Bg4 $18) (34... Rf7 $1 $17 {[%cal Rf7f4] White must now prevent ...Rxf4.} 35. Bg4 Rxf4 (35... Bxb4 $2 36. Be6 $18) 36. Rxf4 Bf7 (36... Bxb4 $2 37. Be6+ Kh8 38. Bxd5 $18)) 35. Bg4 {[%emt 0:00:02]} Bd7 {[%emt 0:00:18] Repels Be6+} (35... Bxa5 36. Rf8#) 36. Bxd7 {[%emt 0:00:24]} Rxd7 $11 {[%emt 0:00:01][%mdl 4096] Endgame KRR-KRB} 37. Rf6 {[%emt 0:00:15]} Bd6 {[%emt 0:01:03]} ({Inferior is} 37... Bxa5 38. Rf8#) 38. R1f2 {[%emt 0:00:51]} Rd8 {[%emt 0:00:45]} 39. Re6 {[%emt 0:00:54]} Bf8 {[%emt 0:00:30]} 40. Rxa6 {[%emt 0:00:39]} d4 {[%emt 0:00:08][%cal Oe4e3]} 41. Raf6 $2 {[%emt 0:00:25][%mdl 8192]} (41. Rf4 $11 Re8 (41... Bxh6 42. Rxe4 d3 43. Rae6 $16) 42. Rff6) 41... Bxh6 $19 {[%emt 0:00:42]} 42. a6 {[%emt 0:00:40]} (42. Rc6 $142 d3 43. Rff6) 42... e3 {[%emt 0:00:38]} 43. Ra2 {[%emt 0:00:06]} d3 {[%emt 0:00:26]} 44. Rd2 {[%emt 0:01:04]} exd2 {[%emt 0:00:25]} (44... Kg7 $142 45. Rb6 exd2 46. Rb7+ Kf6 47. Rxh7 Bg5 48. Rh3 Ra8 49. Rf3+ Ke6 50. Rg3 Bf4 51. Rf3 Ke5 52. a7 Rxa7 53. Re3+ Kf5 (53... Kd4 $2 54. Re4+ Kd5 55. Rxf4 $19) 54. Rxd3 Ra1+ 55. Kc2 Rc1+ (55... Ke4 {leads to mate.} 56. Rd7 Rc1+ 57. Kb3 d1=Q+ 58. Rxd1 Rxd1 59. Kb4 Kd5 60. Kc3 Rc1+ 61. Kb4 Bd6+ 62. Kxb5 Rb1+ 63. Ka5 g5 64. Ka4 Kc6 65. Ka5 Ra1#) 56. Kb3 d1=Q+ (56... d1=R $2 57. Rf3 $19) (56... Ke4 $2 57. Rd7 $19) 57. Rxd1 Rxd1 58. Ka2 Bd2 (58... Rd2+ 59. Kb3 Ke6 60. Kb4 Kd5 61. Kxb5 Rb2+ 62. Ka4 Be5 63. Ka5 Kc6 64. Ka4 Bd6 65. Ka5 Ra2#) 59. Kb3 Rc1 (59... Rb1+ 60. Kc2 Rc1+ 61. Kxd2 Rc8 62. Ke3 b4 63. Kf3 b3 64. Ke2 b2 65. Kf2 b1=Q 66. Kg3 Rc3+ 67. Kh2 Qa2+ 68. Kh1 Rc1#) 60. Ka2 Ke4 (60... Rc2+ 61. Kb1 Rc4 62. Ka2 Ke4 63. Kb2 Kd3 64. Kb3 Rb4+ 65. Ka3 Kc2 66. Ka2 Ra4#) 61. Kb2 Kd3 62. Ka3 Kc3 63. Ka2 Bh6 64. Ka3 Ra1#) 45. Rd6 {[%emt 0:00:20]} Rc8 {[%emt 0:00:21][%csl Gd2,Gh6][%cal Rc8c1] Black mates.} (45... Rxd6 $2 46. a7 $17) 46. Rc6 {[%emt 0:00:35]} Rxc6 {[%emt 0:00:06][%csl Gd2,Gh6][%cal Rc6c1]} 47. a7 {[%emt 0:00:09]} Rc1# {[%emt 0:00:04] Weighted Error Value: White=0.79/Black=0.45  Loses game:     	White=1     	---        Mistake:       	White=11    	Black=8      Inaccurate:     	White=2     	Black=4      OK:         	White=12    	Black=11     Best:        	White=2     	Black=1      Brilliant:      	---       	Black=1} 0-1

[Event "8th Montevideo Open 2025"]
[Site "Montevideo"]
[Date "2025.02.01"]
[Round "2.12"]
[White "Brizzi, Milagros Tatiana"]
[Black "Balseca Moreno, Diego"]
[Result "1-0"]
[Annotator "TA"]
[ECO "B50"]
[WhiteElo "2150"]
[BlackElo "2269"]
[PlyCount "67"]
[EventDate "2025.02.01"]
[EventType "swiss"]
[EventCountry "URU"]
[SourceTitle "playchess.com"]
[Source "ChessBase"]
[SourceQuality "1"]
[TimeControl "5400+30"]

{[%evp 9,67,8,40,31,40,23,77,79,77,70,93,59,77,41,47,18,53,50,52,47,48,36,43,27,58,8,36,6,13,-43,12,6,20,14,13,17,367,362,381,368,378,365,673,673,682,687,704,704,703,683,791,782,1803,1411,29973,29974,5959,6160,29990,1717]} 1. e4 {[%emt 0:02:37]} c5 {[%emt 0:14:45]} 2. Nf3 {[%emt 0:00:14]} d6 {[%emt 0:00:17]} 3. d3 {[%emt 0:00:53]} Nc6 {[%emt 0:00:45][%cal Bb8c6,Bc6d4,Bd4f3][%mdl 32]} 4. g3 {[%emt 0:00:07]} Bg4 {[%emt 0:03:19]} 5. Bg2 {[%emt 0:00:18]} Nd4 {[%emt 0:00:49]} 6. Nbd2 {[%emt 0:01:00]} Nxf3+ {[%emt 0:00:05]} 7. Nxf3 {[%emt 0:00:24]} Bxf3 {[%emt 0:00:44]} (7... e5 $11) 8. Qxf3 $16 {[%emt 0:00:37] White is better.} e6 {[%emt 0:01:32]} 9. O-O {[%emt 0:01:28]} g6 {[%emt 0:04:20]} 10. c3 {[%emt 0:05:03][%cal Oe4e5] White is more active.} Bg7 {[%emt 0:03:28]} 11. Be3 {[%emt 0:05:10][%cal Oe4e5]} Ne7 {[%emt 0:04:37]} 12. e5 {[%emt 0:05:10]} Nc6 {[%emt 0:03:05]} 13. exd6 {[%emt 0:02:16]} Qxd6 {[%emt 0:00:23][%cal Oa8c8]} 14. h4 {[%emt 0:04:29][%cal Bh2h4,Bh4h5][%mdl 32]} O-O {[%emt 0:03:32]} 15. h5 {[%emt 0:02:28]} Rac8 {[%emt 0:06:41]} 16. Rad1 {[%emt 0:02:13]} b6 {[%emt 0:01:40]} 17. Bg5 {[%emt 0:07:16]} ({White should play} 17. h6 $14 Bh8 18. Bg5) 17... h6 {[%emt 0:07:18]} 18. Bc1 {[%emt 0:02:30] A strong pair of Bishops.} g5 {[%emt 0:01:51]} 19. Rfe1 {[%emt 0:01:13]} (19. Qe2 $11) 19... f5 {[%emt 0:03:44]} (19... b5 $15) 20. Qe2 $36 {[%emt 0:07:18][%mdl 2048] White has some pressure.} e5 {[%emt 0:03:08] [#]} 21. f4 $1 {[%emt 0:00:52]} exf4 {[%emt 0:03:44]} 22. gxf4 {[%emt 0:00:42]} Rfe8 {[%emt 0:08:34][%mdl 8192] Wards off Qe6+. This move loses the game for Black.} (22... Bf6 $1 $11 {and Black stays safe.}) 23. Qxe8+ $18 {[%emt 0:02:13]} Rxe8 {[%emt 0:00:01]} 24. Rxe8+ {[%emt 0:00:09]} Kf7 {[%emt 0:00:12] [#] Black is weak on the light squares} 25. Rde1 {[%emt 0:02:08]} g4 $2 {[%emt 0:02:00] [#]} (25... Nd4 26. R1e7+ (26. cxd4 Qxd4+ 27. Be3 Qxd3 $18) (26. fxg5 hxg5 27. R1e7+ Kf6 $18) 26... Qxe7 27. Rxe7+ Kxe7) 26. R8e6 $1 {[%emt 0:00:44][%mdl 512]} Qxd3 {[%emt 0:03:43]} (26... Qd7 27. Bxc6) 27. Bxc6 {[%emt 0:00:51]} Bf6 {[%emt 0:00:09] Repels Re7+} 28. R6e3 {[%emt 0:00:56][%cal Be6e3,Be3d3,Bd3d7][%mdl 32]} Qd6 {[%emt 0:20:04]} 29. Bb5 {[%emt 0:01:56] And now Rd3 would win.} Bh4 {[%emt 0:00:00]} 30. Rd3 {[%emt 0:01:10]} Qb8 {[%emt 0:00:00]} 31. Bc4+ {[%emt 0:00:46]} Kg7 {[%emt 0:00:00]} 32. Rd7+ {[%emt 0:00:52]} Kh8 {[%emt 0:00:00]} 33. Re6 {[%emt 0:01:05]} Bg5 {[%emt 0:00:00]} 34. Rg6 {[%emt 0:01:00] Weighted Error Value: White=0.14 (very precise) /Black=0.80.  Loses game:     	---       	Black=1      Mistake:       	White=2     	Black=3      Inaccurate:     	White=4     	Black=3      OK:         	White=2     	Black=4      Best:        	White=1     	Black=1} (34. fxg5 $142 Qg3+ 35. Kf1 Qh3+ 36. Ke1 Qh1+ 37. Kd2 Qh2+ 38. Kd1 Qg1+ 39. Kc2 (39. Re1 Qxe1+ 40. Kxe1 b5 41. g6 bxc4 42. Bxh6 Kg8 43. Rd8#)) 1-0